{"text_format":"1","workbook":"xlsx","n_sheets":13,"sheets":["LEGGIMI","Elenco Vini","Magazzino","2017","2018","2019","2020","2021","2022","2023","2024","2025","GRAFICI"],"not_rendered":{"charts":9,"images":0,"macros":1,"external_links":0,"defined_names":2,"comments":0,"pivot_tables":0},"unopened":[],"bounds":{"document_bytes":16777216,"sheet_cells":100000,"rows_first":2000,"rows_last":500,"rows_between":2000,"halvings":0,"cell_chars":16384,"cell_head_chars":4096},"cells_cut":0,"cells_raw":0,"read":"whole","date_system":"1900"}

{"sheet":"LEGGIMI","index":0,"n_rows":22,"n_cols":2,"rows_kept":22,"cut":false,"hidden":false,"merged":[[0,1,1,1],[19,1,20,1],[21,1,22,1]]}
[null,"QUESTO FILE UTILIZZA IL PROGRAMMA DI EXCEL"]
[]
[null,"Questo semplice programma è adatto per gli appassionati dell'imbottigliamento del vino che si divertono a farlo."]
[]
[null," Serve per catalogare e tenere sotto controllo il vino acquistato in damigiana ed imbottigliato."]
[]
[null,"Per prima cosa nel foglio \"Elenco Vini\" si inseriscono i tipi di vino da imbottigliare (es: Barbera, Malvasia ecc.)"]
[]
[null,"che, tramite menu a tendina, andranno scritti nei fogli \"Magazzino\" e nei fogli degli anni."]
[]
[null,"Nel foglio \"Magazzino\", una volta imbottigliato, si inserisce la quantità di vini stipati in cantina ed"]
[]
[null,"eventualmente la quantità di vino prelevato. Nei fogli degli anni, si inserisce il prezzo al litro del vino,"]
[]
[null," e la capacità della damigiana acquistata (es: 54, 32, 28 ecc.), in automatico verranno conteggiati"]
[]
[null," il numero di bottiglie occorrenti e di conseguenza i tappi, ed il prezzo della damigiana."]
[]
[null,"PS: alla chiusura del foglio di lavoro, verrà aggiornata la \"quantità in cantina\" e azzerato il \"prelevamento\"."]
[null,"Un cordiale saluto - Buon Lavoro - Program By Maurizio Vignazzi."]
[]
[null,"E-mail: maurivi53@libero.it"]

{"sheet":"Elenco Vini","index":1,"n_rows":19,"n_cols":5,"rows_kept":19,"cut":false,"hidden":false,"merged":[]}
[]
[]
["Barbera",1,null,null,"Inserire nelle caselle a fianco dei numeri, il nome del vino"]
["Bonarda",2]
["Malvasia Semisecca",3,null,null,"che si desidera acquistare, (es. Barbera, Bonarda, Malvasia ecc.)."]
["Pinot Rosè",4]
["Gattinara",5,null,null,"Volendo è possibile riempire tutta la lista dei vini, in modo"]
["Cabernet",6]
[null,7,null,null,"da selezionare quelli che servono per l'imbottigliamento,"]
[null,8]
["Bardolino",9,null,null,"cambiandoli, se si vuole, ogni anno."]
[null,10]
[null,11,null,null,"Alla chiusura di Excel, nel foglio \"Magzzino\" i dati che si trovano "]
[null,12]
[null,13,null,null,"nella lista dei vini rimasti, verrà copiata nella lista dei vini in"]
[null,14]
[null,15,null,null,"cantina e azzerata la lista dei vini prelevati."]
[null,16]
[null,17]

{"sheet":"Magazzino","index":2,"n_rows":21,"n_cols":9,"rows_kept":21,"cut":false,"hidden":false,"merged":[[20,1,21,1],[20,8,21,8],[20,7,21,7],[20,5,21,5],[20,4,21,4],[20,2,21,2]]}
[]
[null,"Bottiglie di Vino in Cantina","Q.tà",null,"Bottiglie di Vino Prelevate","Q.tà",null,"Bottiglie di Vino Rimaste","Q.tà"]
[]
[null,"Barbera",25,null,{"$f":"B4","v":"Barbera"},null,null,{"$f":"E4","v":"Barbera"},{"$f":"C4-F4","v":25}]
[null,"Malvasia Semisecca",10,null,"Malvasia Semisecca",null,null,"Malvasia Semisecca",{"$f":"C5-F5","v":10}]
[null,"Pinot Rosè",30,null,"Pinot Rosè",null,null,"Pinot Rosè",30]
[null,"Bonarda",20,null,"Bonarda",null,null,"Bonarda",20]
[null,null,0,null,0,null,null,0,0]
[null,"Cabernet",25,null,"Cabernet",null,null,"Cabernet",25]
[null,null,0,null,0,null,null,0,0]
[null,null,0,null,0,null,null,0,0]
[null,"Bardolino",0,null,"Bardolino",null,null,"Bardolino",0]
[null,null,0,null,0,null,null,0,0]
[null,null,0,null,0,null,null,0,0]
[null,null,0,null,0,null,null,0,0]
[null,"Gattinara",1,null,"Gattinara",null,null,"Gattinara",1]
[null,null,0,null,0,null,null,0,0]
[null,null,0,null,0,null,null,0,0]
[null,null,0,null,0,null,null,0,0]
[null,null,0,null,0,null,null,0,0]
[null,"TOTALI",{"$f":"SUM(C4:C20)","v":111},null,"TOTALI",{"$f":"SUM(F4:F20)","v":0},null,"TOTALI",{"$f":"SUM(I4:I20)","v":111}]

{"sheet":"2017","index":3,"n_rows":23,"n_cols":6,"rows_kept":23,"cut":false,"hidden":false,"merged":[]}
[null,null,"Anno '2017","EURO al Litro"]
[null,null,"Vendemmia '2016",1.8]
[null,null,"TIPO di VINO","LITRI","BOTTIGLIE","IMPORTO"]
[]
[null,null,"Barbera",54,{"$f":"D5/0.75","v":72},{"$f":"D5*$D$2","v":97.2}]
[null,null,"Malvasia Semisecca",28,{"$f":"D6/0.75","v":37.333333333333336},{"$f":"D6*$D$2","v":50.4}]
[null,null,"Pinot Rosè",32,42.666666666666664,57.6]
[null,null,"Bonarda",54,72,97.2]
[null,null,null,null,0,0]
[null,null,null,null,0,0]
[null,null,"Gattinara",28,37.333333333333336,50.4]
[null,null,null,null,0,0]
[null,null,"Bardolino",28,37.333333333333336,50.4]
[null,null,null,null,0,0]
[null,null,null,null,0,0]
[null,null,null,null,0,0]
[null,null,null,null,0,0]
[null,null,null,null,0,0]
[null,null,null,null,0,0]
[null,null,null,null,0,0]
[null,null,null,null,0,0]
[]
[null,null,"TOTALI",{"$f":"SUM(D5:D12)","v":196},{"$f":"SUM(E5:E12)","v":261.33333333333331},{"$f":"SUM(F5:F21)","v":403.19999999999993}]

{"sheet":"2018","index":4,"n_rows":23,"n_cols":6,"rows_kept":23,"cut":false,"hidden":false,"merged":[]}
[null,null,"Anno '2018","EURO al Litro"]
[null,null,"Vendemmia '2017"]
[null,null,"TIPO di VINO","LITRI","BOTTIGLIE","IMPORTO"]
[]
[null,null,null,null,{"$f":"D5/0.75","v":0},{"$f":"D5*$D$2","v":0}]
[null,null,null,null,{"$f":"D6/0.75","v":0},{"$f":"D6*$D$2","v":0}]
[null,null,null,null,0,0]
[null,null,null,null,0,0]
[null,null,null,null,0,0]
[null,null,null,null,0,0]
[null,null,null,null,0,0]
[null,null,null,null,0,0]
[null,null,null,null,0,0]
[null,null,null,null,0,0]
[null,null,null,null,0,0]
[null,null,null,null,0,0]
[null,null,null,null,0,0]
[null,null,null,null,0,0]
[null,null,null,null,0,0]
[null,null,null,null,0,0]
[null,null,null,null,0,0]
[]
[null,null,"TOTALI",{"$f":"SUM(D5:D22)","v":0},{"$f":"SUM(E5:E22)","v":0},{"$f":"SUM(F5:F21)","v":0}]

{"sheet":"2019","index":5,"n_rows":23,"n_cols":6,"rows_kept":23,"cut":false,"hidden":false,"merged":[]}
[null,null,"Anno '2019","EURO al Litro"]
[null,null,"Vendemmia '2018"]
[null,null,"TIPO di VINO","LITRI","BOTTIGLIE","IMPORTO"]
[]
[null,null,null,null,{"$f":"D5/0.75","v":0},{"$f":"D5*$D$2","v":0}]
[null,null,null,null,{"$f":"D6/0.75","v":0},{"$f":"D6*$D$2","v":0}]
[null,null,null,null,0,0]
[null,null,null,null,0,0]
[null,null,null,null,0,0]
[null,null,null,null,0,0]
[null,null,null,null,0,0]
[null,null,null,null,0,0]
[null,null,null,null,0,0]
[null,null,null,null,0,0]
[null,null,null,null,0,0]
[null,null,null,null,0,0]
[null,null,null,null,0,0]
[null,null,null,null,0,0]
[null,null,null,null,0,0]
[null,null,null,null,0,0]
[null,null,null,null,0,0]
[]
[null,null,"TOTALI",{"$f":"SUM(D5:D11)","v":0},{"$f":"SUM(E5:E11)","v":0},{"$f":"SUM(F5:F21)","v":0}]

{"sheet":"2020","index":6,"n_rows":23,"n_cols":6,"rows_kept":23,"cut":false,"hidden":false,"merged":[]}
[null,null,"Anno '2020","EURO al Litro"]
[null,null,"Vendemmia '2019"]
[null,null,"TIPO di VINO","LITRI","BOTTIGLIE","IMPORTO"]
[]
[null,null,null,null,{"$f":"D5/0.75","v":0},{"$f":"D5*$D$2","v":0}]
[null,null,null,null,{"$f":"D6/0.75","v":0},{"$f":"D6*$D$2","v":0}]
[null,null,null,null,0,0]
[null,null,null,null,0,0]
[null,null,null,null,0,0]
[null,null,null,null,0,0]
[null,null,null,null,0,0]
[null,null,null,null,0,0]
[null,null,null,null,0,0]
[null,null,null,null,0,0]
[null,null,null,null,0,0]
[null,null,null,null,0,0]
[null,null,null,null,0,0]
[null,null,null,null,0,0]
[null,null,null,null,0,0]
[null,null,null,null,0,0]
[null,null,null,null,0,0]
[]
[null,null,"TOTALI",{"$f":"SUM(D5:D12)","v":0},{"$f":"SUM(E5:E12)","v":0},{"$f":"SUM(F5:F21)","v":0}]

{"sheet":"2021","index":7,"n_rows":23,"n_cols":6,"rows_kept":23,"cut":false,"hidden":false,"merged":[]}
[null,null,"Anno '2021","EURO al Litro"]
[null,null,"Vendemmia '2020"]
[null,null,"TIPO di VINO","LITRI","BOTTIGLIE","IMPORTO"]
[]
[null,null,null,null,{"$f":"D5/0.75","v":0},{"$f":"D5*$D$2","v":0}]
[null,null,null,null,{"$f":"D6/0.75","v":0},{"$f":"D6*$D$2","v":0}]
[null,null,null,null,0,0]
[null,null,null,null,0,0]
[null,null,null,null,0,0]
[null,null,null,null,0,0]
[null,null,null,null,0,0]
[null,null,null,null,0,0]
[null,null,null,null,0,0]
[null,null,null,null,0,0]
[null,null,null,null,0,0]
[null,null,null,null,0,0]
[null,null,null,null,0,0]
[null,null,null,null,0,0]
[null,null,null,null,0,0]
[null,null,null,null,0,0]
[null,null,null,null,0,0]
[]
[null,null,"TOTALI",{"$f":"SUM(D5:D21)","v":0},{"$f":"SUM(E5:E21)","v":0},{"$f":"SUM(F5:F21)","v":0}]

{"sheet":"2022","index":8,"n_rows":23,"n_cols":6,"rows_kept":23,"cut":false,"hidden":false,"merged":[]}
[null,null,"Anno '2022","EURO al Litro"]
[null,null,"Vendemmia '2021"]
[null,null,"TIPO di VINO","LITRI","BOTTIGLIE","IMPORTO"]
[]
[null,null,null,null,{"$f":"D5/0.75","v":0},{"$f":"D5*$D$2","v":0}]
[null,null,null,null,{"$f":"D6/0.75","v":0},{"$f":"D6*$D$2","v":0}]
[null,null,null,null,0,0]
[null,null,null,null,0,0]
[null,null,null,null,0,0]
[null,null,null,null,0,0]
[null,null,null,null,0,0]
[null,null,null,null,0,0]
[null,null,null,null,0,0]
[null,null,null,null,0,0]
[null,null,null,null,0,0]
[null,null,null,null,0,0]
[null,null,null,null,0,0]
[null,null,null,null,0,0]
[null,null,null,null,0,0]
[null,null,null,null,0,0]
[null,null,null,null,0,0]
[]
[null,null,"TOTALI",{"$f":"SUM(D5:D11)","v":0},{"$f":"SUM(E5:E11)","v":0},{"$f":"SUM(F5:F21)","v":0}]

{"sheet":"2023","index":9,"n_rows":23,"n_cols":6,"rows_kept":23,"cut":false,"hidden":false,"merged":[]}
[null,null,"Anno '2023","EURO al Litro"]
[null,null,"Vendemmia '2022"]
[null,null,"TIPO di VINO","LITRI","BOTTIGLIE","IMPORTO"]
[]
[null,null,null,null,{"$f":"D5/0.75","v":0},{"$f":"D5*$D$2","v":0}]
[null,null,null,null,{"$f":"D6/0.75","v":0},{"$f":"D6*$D$2","v":0}]
[null,null,null,null,0,0]
[null,null,null,null,0,0]
[null,null,null,null,0,0]
[null,null,null,null,0,0]
[null,null,null,null,0,0]
[null,null,null,null,0,0]
[null,null,null,null,0,0]
[null,null,null,null,0,0]
[null,null,null,null,0,0]
[null,null,null,null,0,0]
[null,null,null,null,0,0]
[null,null,null,null,0,0]
[null,null,null,null,0,0]
[null,null,null,null,0,0]
[null,null,null,null,0,0]
[]
[null,null,"TOTALI",{"$f":"SUM(D5:D10)","v":0},{"$f":"SUM(E5:E10)","v":0},{"$f":"SUM(F5:F21)","v":0}]

{"sheet":"2024","index":10,"n_rows":23,"n_cols":6,"rows_kept":23,"cut":false,"hidden":false,"merged":[]}
[null,null,"Anno '2024","EURO al Litro"]
[null,null,"Vendemmia '2023"]
[null,null,"TIPO di VINO","LITRI","BOTTIGLIE","IMPORTO"]
[]
[null,null,null,null,{"$f":"D5/0.75","v":0},{"$f":"D5*$D$2","v":0}]
[null,null,null,null,{"$f":"D6/0.75","v":0},{"$f":"D6*$D$2","v":0}]
[null,null,null,null,0,0]
[null,null,null,null,0,0]
[null,null,null,null,0,0]
[null,null,null,null,0,0]
[null,null,null,null,0,0]
[null,null,null,null,0,0]
[null,null,null,null,0,0]
[null,null,null,null,0,0]
[null,null,null,null,0,0]
[null,null,null,null,0,0]
[null,null,null,null,0,0]
[null,null,null,null,0,0]
[null,null,null,null,0,0]
[null,null,null,null,0,0]
[null,null,null,null,0,0]
[]
[null,null,"TOTALI",{"$f":"SUM(D5:D21)","v":0},{"$f":"SUM(E5:E21)","v":0},{"$f":"SUM(F5:F21)","v":0}]

{"sheet":"2025","index":11,"n_rows":23,"n_cols":6,"rows_kept":23,"cut":false,"hidden":false,"merged":[]}
[null,null,"Anno '2025","EURO al Litro"]
[null,null,"Vendemmia '2024"]
[null,null,"TIPO di VINO","LITRI","BOTTIGLIE","IMPORTO"]
[]
[null,null,null,null,{"$f":"D5/0.75","v":0},{"$f":"D5*$D$2","v":0}]
[null,null,null,null,{"$f":"D6/0.75","v":0},{"$f":"D6*$D$2","v":0}]
[null,null,null,null,0,0]
[null,null,null,null,0,0]
[null,null,null,null,0,0]
[null,null,null,null,0,0]
[null,null,null,null,0,0]
[null,null,null,null,0,0]
[null,null,null,null,0,0]
[null,null,null,null,0,0]
[null,null,null,null,0,0]
[null,null,null,null,0,0]
[null,null,null,null,0,0]
[null,null,null,null,0,0]
[null,null,null,null,0,0]
[null,null,null,null,0,0]
[null,null,null,null,0,0]
[]
[null,null,"TOTALI",{"$f":"SUM(D16:D21)","v":0},{"$f":"SUM(E16:E21)","v":0},{"$f":"SUM(F5:F21)","v":0}]

{"sheet":"GRAFICI","index":12,"n_rows":96,"n_cols":32,"rows_kept":96,"cut":false,"hidden":false,"merged":[[31,72,31,74],[31,57,31,59],[63,31,63,33],[31,5,31,7],[95,44,95,46],[63,5,63,7],[63,44,63,46],[31,44,31,46],[95,31,95,33],[95,5,95,7],[31,18,31,20],[63,18,63,20],[95,18,95,20],[31,31,31,33],[63,57,63,59],[95,57,95,59]]}
[]
[]
[]
[]
[]
[]
[]
[]
[]
[]
[]
[]
[]
[]
[]
[]
[]
[]
[]
[]
[]
[]
[]
[]
[]
[]
[]
[]
[]
[]
[]
[null,null,null,null,null,"RITORNO",null,null,null,null,null,null,null,null,null,null,null,null,"RITORNO",null,null,null,null,null,null,null,null,null,null,null,null,"RITORNO"]
["2018'!A1"]
[]
[]
[]
[]
[]
[]
[]
[]
[]
[]
[]
[]
[]
[]
[]
[]
[]
[]
[]
[]
[]
[]
[]
[]
[]
[]
[]
[]
[]
[]
[null,null,null,null,null,"RITORNO",null,null,null,null,null,null,null,null,null,null,null,null,"RITORNO",null,null,null,null,null,null,null,null,null,null,null,null,"RITORNO"]
[]
[]
[]
[]
[]
[]
[]
[]
[]
[]
[]
[]
[]
[]
[]
[]
[]
[]
[]
[]
[]
[]
[]
[]
[]
[]
[]
[]
[]
[]
[]
[null,null,null,null,null,"RITORNO",null,null,null,null,null,null,null,null,null,null,null,null,"RITORNO",null,null,null,null,null,null,null,null,null,null,null,null,"RITORNO"]